bitfinex/quotes_BTCUSD_20230831
["timestamp","ask_amount","ask_price","bid_price","bid_amount"]
[1693502211619,1.708585,26353.0,26351.0,0.009]
[1693502211827,1.712585,26353.0,26351.0,0.009]
[1693502212471,1.708585,26353.0,26351.0,0.009]
[1693502212680,1.712585,26353.0,26352.0,0.001]
[1693502213108,2.13926585,26353.0,26352.0,0.001]
[1693502213307,1.707849,26349.0,26344.0,0.06744]
[1693502213549,1.707849,26349.0,26342.0,0.09864]
[1693502213550,1.921749,26349.0,26342.0,0.09864]
[1693502213760,2.277427,26346.0,26342.0,0.36768085]
[1693502214186,2.277427,26346.0,26343.0,0.07566]
[1693502214399,2.277427,26346.0,26340.0,0.020301]
[1693502214400,2.2776,26344.0,26340.0,0.020301]
[1693502214679,2.2776,26344.0,26340.0,0.45614185]
[1693502214888,1.7082,26344.0,26342.0,0.001]
[1693502215312,1.7082,26344.0,26341.0,0.08478]
[1693502215532,1.7122,26344.0,26342.0,0.43818085]
[1693502215750,1.7122,26344.0,26342.0,0.47190085]
[1693502215966,1.7122,26344.0,26343.0,0.09258]
[1693502216174,0.004,26344.0,26343.0,0.62448085]
[1693502216379,0.569389,26344.0,26343.0,0.47766085]
[1693502216590,0.569389,26344.0,26343.0,0.47580085]
[1693502216801,1.138778,26344.0,26343.0,0.47454085]
[1693502217010,1.138778,26344.0,26343.0,0.46248085]
[1693502217214,1.138778,26344.0,26340.0,0.163581]
[1693502217215,1.708167,26344.0,26342.0,0.06984]
[1693502217428,1.138778,26344.0,26343.0,0.10218]
[1693502217635,1.138778,26344.0,26342.0,0.36768085]
[1693502217844,1.142778,26344.0,26343.0,0.50538085]
[1693502218078,0.008,26344.0,26343.0,0.53028085]
[1693502218256,1.142778,26344.0,26343.0,0.51834085]
[1693502218460,1.138778,26344.0,26343.0,0.48396085]
[1693502218689,0.573389,26344.0,26343.0,0.48820085]
[1693502218886,0.573389,26344.0,26343.0,0.48658085]
[1693502219099,1.712167,26344.0,26343.0,0.46390085]
[1693502219315,0.004,26344.0,26343.0,0.45616085]
[1693502219516,0.004,26344.0,26343.0,0.65932085]
[1693502219739,0.008,26344.0,26343.0,0.66040085]
[1693502219955,0.008,26344.0,26343.0,0.66652085]
[1693502220175,0.008,26344.0,26343.0,1.32121185]
[1693502220384,0.004,26344.0,26343.0,2.44115014]
[1693502220602,0.004,26344.0,26343.0,3.03752114]
[1693502220603,0.008,26344.0,26343.0,3.03752114]
[1693502220813,0.008,26344.0,26343.0,0.86348085]
[1693502221023,0.008,26344.0,26343.0,0.69276085]
[1693502221231,0.573389,26344.0,26343.0,0.50448085]
[1693502221456,0.004,26344.0,26343.0,0.50526085]
[1693502221696,0.004,26344.0,26343.0,0.49682085]
[1693502221697,1.145778,26344.0,26343.0,0.49682085]
[1693502221943,1.145778,26344.0,26343.0,0.50018085]
[1693502222151,1.145778,26344.0,26343.0,0.50426085]
[1693502222398,0.576389,26344.0,26343.0,0.51662085]
[1693502222601,0.576389,26344.0,26343.0,0.52736085]
[1693502222802,0.573389,26344.0,26343.0,0.49408085]
[1693502223008,0.573389,26344.0,26343.0,0.47536085]
[1693502223213,0.576389,26344.0,26343.0,0.51062085]
[1693502223428,0.576389,26344.0,26343.0,0.51026085]
[1693502223640,0.576389,26344.0,26343.0,0.51080085]
[1693502223853,0.576389,26344.0,26343.0,0.51116085]
[1693502224051,0.576389,26344.0,26343.0,0.51950085]
[1693502224257,0.576389,26344.0,26343.0,0.51812085]
[1693502224456,1.145778,26344.0,26343.0,0.51008085]
[1693502224683,1.145778,26344.0,26343.0,0.51260085]
[1693502224893,1.145778,26344.0,26343.0,0.51386085]
[1693502225099,1.145778,26344.0,26343.0,0.78100085]
[1693502225100,0.007,26344.0,26343.0,0.78100085]
[1693502225307,0.007,26344.0,26343.0,2.51815385]
[1693502225523,0.007,26344.0,26343.0,2.93599385]
[1693502225727,0.007,26344.0,26343.0,3.47605385]
[1693502225966,0.007,26344.0,26343.0,3.81288289]
[1693502226165,0.007,26344.0,26343.0,3.80424289]
[1693502226384,0.569219,26352.0,26346.0,0.08]
[1693502226589,0.569241,26351.0,26347.0,1.10407219]
[1693502226792,1.138369,26354.0,26348.0,0.36768085]
[1693502226993,1.138369,26354.0,26349.0,0.73634534]
[1693502227172,1.138369,26354.0,26350.0,0.36768085]
[1693502227402,1.707563,26354.0,26350.0,0.51475319]
[1693502227611,1.707563,26354.0,26351.0,0.1194]
[1693502227827,1.707563,26354.0,26350.0,0.50322085]
[1693502227828,1.74566853,26354.0,26350.0,0.0708]
[1693502228037,1.74566853,26354.0,26345.0,0.949742]
[1693502228038,0.1539,26352.0,26349.0,0.06864]
[1693502228244,0.1539,26352.0,26347.0,0.0717]
[1693502228245,2.276996,26351.0,26347.0,0.0717]
[1693502228452,0.1539,26348.0,26346.0,0.07542]
[1693502228661,0.1539,26348.0,26344.0,0.07944]
[1693502228662,1.707987,26347.0,26344.0,0.07944]
[1693502228867,1.707987,26347.0,26344.0,0.45768085]
[1693502229072,1.707987,26347.0,26345.0,0.08358]
[1693502229276,1.707987,26347.0,26345.0,0.08226]
[1693502229480,1.707987,26347.0,26345.0,0.08436]
[1693502229685,1.707987,26347.0,26346.0,0.031]
[1693502230073,1.707987,26347.0,26345.0,0.06474]
[1693502230334,1.707987,26347.0,26345.0,0.007]
[1693502230534,1.921938,26346.0,26345.0,0.007]
[1693502230961,1.921938,26346.0,26340.0,0.085161]
[1693502230962,1.921938,26346.0,26340.0,0.090381]
[1693502231172,1.921938,26346.0,26340.0,0.020301]
[1693502231379,1.921938,26346.0,26345.0,0.004]
[1693502231623,1.921938,26346.0,26340.0,0.088761]
[1693502231624,1.921938,26346.0,26341.0,0.07332]
[1693502231830,0.2139,26346.0,26341.0,0.07452]
[1693502232012,1.957938,26346.0,26345.0,0.003]
[1693502232218,1.921938,26346.0,26341.0,0.0717]
[1693502232421,1.921938,26346.0,26341.0,0.06402]
[1693502232625,1.962938,26346.0,26345.0,0.004]
[1693502233028,1.957938,26346.0,26345.0,0.003]
[1693502233436,1.962938,26346.0,26345.0,0.003]
[1693502233795,1.957938,26346.0,26345.0,0.003]
[1693502233995,1.897938,26346.0,26345.0,0.003]
[1693502234197,1.897938,26346.0,26345.0,0.006]
[1693502234198,2.14984736,26346.0,26345.0,0.006]
[1693502234374,0.005,26346.0,26345.0,0.51775319]
[1693502234577,0.005,26346.0,26345.0,2.28585719]
[1693502234829,0.041,26346.0,26345.0,2.48802485]
[1693502235046,0.041,26346.0,26345.0,1.85137685]
[1693502235251,0.041,26346.0,26345.0,0.71200085]
[1693502235453,0.569326,26347.0,26345.0,0.69508085]
[1693502235582,0.569307,26348.0,26346.0,0.38768085]
[1693502235990,1.138625,26348.0,26347.0,0.10032]
[1693502236190,1.138625,26348.0,26347.0,0.46578085]
[1693502236390,1.138625,26348.0,26347.0,0.46692085]
[1693502236615,1.138625,26348.0,26347.0,0.45744085]
[1693502236818,1.707928,26348.0,26347.0,0.08004]
[1693502237015,1.707928,26348.0,26345.0,0.12018]
[1693502237292,1.707928,26348.0,26345.0,0.048]
[1693502237538,1.707928,26348.0,26345.0,0.029]
[1693502237752,1.707928,26348.0,26342.0,0.12192]
[1693502237959,1.707928,26348.0,26346.0,0.003]
[1693502237960,1.708928,26348.0,26346.0,0.003]
[1693502238353,1.707928,26348.0,26343.0,0.11172]
[1693502238622,1.707928,26348.0,26345.0,0.003]
[1693502238623,1.708928,26348.0,26345.0,0.003]
[1693502238851,1.708928,26348.0,26347.0,0.006]
[1693502239056,1.707928,26348.0,26347.0,0.006]
[1693502239261,1.708928,26348.0,26346.0,0.003]
[1693502239669,1.707928,26348.0,26344.0,0.09912]
[1693502239873,1.707928,26348.0,26345.0,0.08784]
[1693502240053,1.13861,26348.0,26345.0,0.47046085]
[1693502240308,0.569303,26348.0,26345.0,0.48504085]
[1693502240518,0.569283,26349.0,26346.0,0.26652]
[1693502240726,0.569303,26348.0,26347.0,0.36768085]
[1693502240949,1.139606,26348.0,26347.0,0.36768085]
[1693502241152,1.139606,26348.0,26347.0,0.44814085]
[1693502241357,1.139606,26348.0,26347.0,0.44712085]
[1693502241771,1.138606,26348.0,26347.0,0.45444085]
[1693502241973,1.138606,26348.0,26347.0,0.45456085]
[1693502242187,1.139606,26348.0,26347.0,0.46392085]
[1693502242393,1.139606,26348.0,26347.0,0.47556085]
[1693502242608,1.139606,26348.0,26347.0,0.47304085]
[1693502242810,1.139606,26348.0,26347.0,0.47388085]
[1693502243028,1.139606,26348.0,26347.0,0.46974085]
[1693502243253,1.139606,26348.0,26347.0,0.009]
[1693502243469,1.9305526,26348.0,26347.0,0.009]
[1693502243687,1.84189516,26348.0,26347.0,0.009]
[1693502244327,2.39168389,26348.0,26347.0,0.009]
[1693502244547,2.45272541,26348.0,26347.0,0.009]
[1693502244765,2.45272541,26348.0,26340.0,0.020301]
[1693502244766,0.07300179,26346.0,26340.0,0.020301]
[1693502245040,0.154,26343.0,26340.0,0.090381]
[1693502245251,1.138864,26342.0,26340.0,0.090261]
[1693502245462,1.138864,26342.0,26340.0,0.090741]
[1693502245674,1.138864,26342.0,26340.0,0.090681]
[1693502245904,1.138864,26342.0,26340.0,0.089901]
[1693502246138,1.708296,26342.0,26340.0,0.020301]
[1693502246573,1.708296,26342.0,26340.0,0.025301]
[1693502247012,1.708296,26342.0,26340.0,0.103781]
[1693502247244,1.708296,26342.0,26341.0,0.08862]
[1693502247446,1.708296,26342.0,26341.0,0.08334]
[1693502247652,1.708296,26342.0,26340.0,0.104581]
[1693502247855,1.708296,26342.0,26340.0,0.027301]
[1693502247856,1.608296,26342.0,26340.0,0.027301]
[1693502248058,1.608296,26342.0,26340.0,0.025301]
[1693502248300,1.608296,26342.0,26340.0,0.020301]
[1693502248539,1.609296,26342.0,26341.0,0.005]
[1693502248750,1.85230456,26342.0,26341.0,0.005]
[1693502248976,1.85230456,26342.0,26340.0,0.023301]
[1693502248977,1.9858174,26342.0,26340.0,0.023301]
[1693502249185,0.08900856,26341.0,26340.0,0.023301]
[1693502249396,1.79737056,26341.0,26340.0,0.028301]
[1693502250005,1.708362,26341.0,26340.0,0.028301]
[1693502250462,1.708362,26341.0,26340.0,0.125021]
[1693502250665,1.708362,26341.0,26340.0,0.111761]
[1693502250872,1.708362,26341.0,26340.0,0.025301]
[1693502251090,1.95137056,26341.0,26340.0,0.025301]
[1693502251309,1.864362,26341.0,26340.0,0.036301]
[1693502251511,1.95337056,26341.0,26340.0,0.054301]
[1693502251847,1.864362,26341.0,26340.0,0.036301]
[1693502252045,1.862362,26341.0,26340.0,0.020301]
[1693502252247,2.03687484,26341.0,26340.0,0.028301]
[1693502252449,0.16,26340.0,26339.0,0.020301]
[1693502252677,3.20766348,26340.0,26339.0,0.020301]
[1693502252908,3.02973948,26340.0,26339.0,0.020301]
[1693502253139,0.06,26338.0,26337.0,0.020402]
[1693502253345,3.09441077,26338.0,26337.0,0.020402]
[1693502253561,0.06,26337.0,26333.0,0.015703]
[1693502253793,2.278264,26336.0,26333.0,0.015703]
[1693502254017,2.432264,26336.0,26333.0,0.015703]
[1693502254233,2.432264,26336.0,26334.0,0.36768085]
[1693502254234,2.278264,26336.0,26334.0,0.36768085]
[1693502254437,2.278264,26336.0,26334.0,0.46038085]
[1693502254665,1.708698,26336.0,26335.0,0.07968]
[1693502254863,1.139132,26336.0,26335.0,0.44388085]
[1693502255072,1.164132,26336.0,26335.0,0.46572085]
[1693502255278,1.164132,26336.0,26335.0,0.48486085]
[1693502255428,1.139132,26336.0,26335.0,0.49176085]
[1693502255634,1.139132,26336.0,26335.0,0.47562085]
[1693502255834,1.156132,26336.0,26335.0,0.47158085]
[1693502256148,1.156132,26336.0,26335.0,0.47974085]
[1693502256325,1.156132,26336.0,26335.0,0.47140085]
[1693502256592,1.725698,26336.0,26335.0,0.0931]
[1693502256790,1.725698,26336.0,26335.0,0.001]
[1693502256791,1.750698,26336.0,26335.0,0.001]
[1693502256999,1.725698,26336.0,26335.0,0.001]
[1693502257407,1.750698,26336.0,26335.0,0.004]
[1693502257944,1.92860489,26336.0,26335.0,0.004]
[1693502258143,2.50227279,26336.0,26335.0,0.004]
[1693502258369,2.20251646,26336.0,26335.0,0.004]
[1693502258578,2.02460957,26336.0,26335.0,0.004]
[1693502259127,1.98020411,26336.0,26335.0,0.004]
[1693502259340,2.02460957,26336.0,26335.0,0.004]
[1693502260230,2.20251646,26336.0,26335.0,0.004]
[1693502260408,2.1134454,26336.0,26335.0,0.004]
[1693502260613,2.02460957,26336.0,26335.0,0.004]
[1693502260820,1.98022253,26336.0,26335.0,0.004]
[1693502261021,2.1134341,26336.0,26335.0,0.004]
[1693502261234,1.98022253,26336.0,26335.0,0.004]
[1693502261642,2.1134341,26336.0,26335.0,0.004]
[1693502262063,2.1134341,26336.0,26325.0,0.020301]
[1693502262064,0.14,26326.0,26325.0,0.020301]
[1693502262281,0.16,26326.0,26325.0,0.020301]
[1693502262487,2.023334,26326.0,26325.0,0.020301]
[1693502262770,2.93121753,26326.0,26325.0,0.020301]
[1693502262974,2.733112,26326.0,26325.0,0.020301]
[1693502263186,2.419052,26326.0,26325.0,0.021301]
[1693502263399,2.573052,26326.0,26325.0,0.021301]
[1693502263603,2.662052,26326.0,26325.0,0.021301]
[1693502263922,2.662052,26326.0,26322.0,0.020301]
[1693502263923,2.279288,26324.0,26322.0,0.020301]
[1693502264106,1.923529,26323.0,26322.0,0.005301]
[1693502264254,2.223529,26323.0,26322.0,0.005301]
[1693502264452,2.283529,26323.0,26322.0,0.005301]
[1693502264658,2.263529,26323.0,26322.0,0.005301]
[1693502264861,2.243529,26323.0,26322.0,0.005301]
[1693502265289,2.223529,26323.0,26322.0,0.005301]
[1693502266042,2.260829,26323.0,26322.0,0.008301]
[1693502266473,1.900829,26323.0,26322.0,0.008301]
[1693502266687,1.936829,26323.0,26322.0,0.008301]
[1693502266891,1.996829,26323.0,26322.0,0.008301]
[1693502267307,1.936829,26323.0,26322.0,0.008301]
[1693502267524,1.212686,26323.0,26322.0,0.098721]
[1693502267743,0.073,26323.0,26322.0,0.50288185]
[1693502267956,0.073,26323.0,26322.0,0.51692185]
[1693502268174,0.02,26329.0,26322.0,3.18199738]
[1693502268175,0.569732,26329.0,26322.0,3.18199738]
[1693502268383,1.139464,26329.0,26323.0,0.53475319]
[1693502268596,1.139464,26329.0,26325.0,0.02]
[1693502268800,1.709196,26329.0,26326.0,0.53475319]
[1693502269227,0.569673,26331.0,26327.0,0.06]
[1693502269434,0.2506,26336.0,26327.0,0.06]
[1693502269435,0.14918415,26336.0,26328.0,0.04]
[1693502269650,0.14918415,26336.0,26329.0,0.51475319]
[1693502269651,0.56966,26332.0,26329.0,0.51475319]
[1693502269860,1.70898,26332.0,26329.0,0.46470085]
[1693502270070,1.70898,26332.0,26330.0,0.07116]
[1693502270308,1.70898,26332.0,26330.0,0.093]
[1693502270529,1.70898,26332.0,26331.0,0.36768085]
[1693502270742,1.70898,26332.0,26331.0,0.47238085]
[1693502270949,1.70898,26332.0,26331.0,0.49026085]
[1693502271153,1.70898,26332.0,26331.0,0.49812085]
[1693502271154,1.74498,26332.0,26331.0,0.49812085]
[1693502271357,1.74498,26332.0,26331.0,0.49440085]
[1693502271614,1.74498,26332.0,26331.0,0.47658085]
[1693502271820,1.74498,26332.0,26331.0,0.47196085]
[1693502272026,1.74498,26332.0,26331.0,0.47238085]
[1693502272242,0.036,26332.0,26331.0,0.50394085]
[1693502272463,0.036,26332.0,26331.0,0.71744085]
[1693502272679,0.036,26332.0,26331.0,0.70608085]
[1693502272897,0.569592,26335.0,26331.0,0.71064085]
[1693502273103,0.569592,26335.0,26332.0,0.08]
[1693502273306,0.569592,26335.0,26333.0,0.36768085]
[1693502273502,0.569592,26335.0,26333.0,0.68064085]
[1693502273707,0.569592,26335.0,26334.0,0.27528]
[1693502273910,0.569592,26335.0,26334.0,0.63972085]
[1693502274116,0.569592,26335.0,26334.0,0.64080085]
[1693502274322,0.036,26335.0,26334.0,1.92876319]
[1693502274536,0.569482,26340.0,26337.0,0.1]
[1693502274537,1.138976,26340.0,26337.0,0.1]
[1693502274762,1.138976,26340.0,26338.0,0.53475319]
[1693502274763,0.569482,26340.0,26338.0,0.53475319]
[1693502274969,0.569477,26340.0,26338.0,0.83439319]
[1693502275181,0.569477,26340.0,26339.0,0.26796]
[1693502275389,0.08878436,26344.0,26339.0,0.26796]
[1693502275390,0.08878436,26344.0,26339.0,2.02087893]
[1693502275391,0.569396,26344.0,26339.0,2.02087893]
[1693502275675,0.569381,26345.0,26340.0,0.53475319]
[1693502275889,0.569381,26345.0,26340.0,0.86883319]
[1693502275890,1.138786,26344.0,26340.0,0.86883319]
[1693502276101,1.708179,26344.0,26341.0,0.1194]
[1693502276325,1.708179,26344.0,26342.0,0.36768085]
[1693502276536,0.07739449,26341.0,26338.0,0.001]
[1693502276762,1.708428,26340.0,26339.0,0.36768085]
[1693502277182,1.708428,26340.0,26339.0,0.43254085]
[1693502277395,1.708428,26340.0,26339.0,0.45540085]
[1693502277613,1.708428,26340.0,26339.0,0.46002085]
[1693502277614,1.138952,26340.0,26339.0,0.46002085]
[1693502277831,1.138952,26340.0,26339.0,0.45972085]
[1693502278032,1.138952,26340.0,26339.0,0.45342085]
[1693502278238,1.711428,26340.0,26339.0,0.47794085]
[1693502278452,1.141952,26340.0,26339.0,0.49318085]
[1693502278658,1.141952,26340.0,26339.0,0.49486085]
[1693502278860,1.141952,26340.0,26339.0,0.48526085]
[1693502279068,1.141952,26340.0,26339.0,0.52110085]
[1693502279304,1.141952,26340.0,26339.0,0.52248085]
[1693502279507,1.141952,26340.0,26339.0,0.52710085]
[1693502279710,1.141952,26340.0,26339.0,0.52782085]
[1693502279920,1.141952,26340.0,26339.0,0.51390085]
[1693502280126,1.141952,26340.0,26339.0,0.51300085]
[1693502280331,1.711428,26340.0,26339.0,0.51126085]
[1693502280748,1.711428,26340.0,26339.0,0.50880085]
[1693502280955,1.711428,26340.0,26339.0,0.50712085]
[1693502281156,1.711428,26340.0,26339.0,0.44268085]
[1693502281364,1.711428,26340.0,26339.0,0.51888085]
[1693502281365,0.003,26340.0,26339.0,0.51888085]
[1693502281571,0.003,26340.0,26339.0,0.57404085]
[1693502281803,0.003,26340.0,26339.0,0.70566284]
[1693502281986,0.003,26340.0,26339.0,2.11587785]
[1693502282190,0.003,26340.0,26339.0,2.66245485]
[1693502282400,0.003,26340.0,26339.0,2.66233485]
[1693502282611,0.003,26340.0,26339.0,3.23495185]
[1693502282817,0.11976211,26349.0,26342.0,0.4784]
[1693502283089,1.138628,26348.0,26344.0,0.569387]
[1693502283300,1.138628,26348.0,26345.0,0.38768085]
[1693502283507,1.707942,26348.0,26345.0,0.47228085]
[1693502283710,1.707942,26348.0,26345.0,0.43908085]
[1693502283924,1.707942,26348.0,26345.0,0.44172085]
[1693502284130,1.707942,26348.0,26345.0,0.36768085]
[1693502284338,2.07562285,26348.0,26343.0,0.09426]
[1693502284547,2.07562285,26348.0,26340.0,0.07182]
[1693502284548,0.08878436,26346.0,26340.0,0.07182]
[1693502284757,0.1543,26344.0,26338.0,0.07788]
[1693502284970,0.1543,26344.0,26336.0,0.07416]
[1693502284971,0.1543,26342.0,26336.0,0.07416]
[1693502285181,1.708413,26341.0,26337.0,0.36768085]
[1693502285386,2.277884,26341.0,26337.0,0.36768085]
[1693502285615,2.277884,26341.0,26337.0,0.43464085]
[1693502285821,2.277884,26341.0,26338.0,0.038]
[1693502286689,2.32498953,26341.0,26338.0,0.038]
[1693502286899,0.08878436,26345.0,26342.0,0.1]
[1693502287116,0.08878436,26345.0,26342.0,0.51475319]
[1693502287117,0.569368,26345.0,26342.0,0.51475319]
[1693502287324,1.93006491,26345.0,26343.0,0.07236]
[1693502287539,1.708104,26345.0,26343.0,0.0675]
[1693502287750,1.708104,26345.0,26343.0,0.07032]
[1693502287968,1.708104,26345.0,26343.0,0.07104]
[1693502288204,1.708104,26345.0,26343.0,0.07098]
[1693502288407,1.708104,26345.0,26340.0,0.11196]
[1693502288616,1.79688836,26345.0,26343.0,0.08634]
[1693502288823,1.79688836,26345.0,26343.0,0.015]
[1693502289033,1.708104,26345.0,26343.0,0.015]
[1693502289245,1.79688836,26345.0,26342.0,0.08148]
[1693502289456,1.79788836,26345.0,26342.0,0.09524]
[1693502289658,1.79688836,26345.0,26342.0,0.08664]
[1693502289862,1.79688836,26345.0,26343.0,0.06908]
[1693502290067,1.79688836,26345.0,26343.0,0.005]
[1693502290263,0.08878436,26344.0,26342.0,0.08262]
[1693502290470,1.138822,26343.0,26342.0,0.37268085]
[1693502290876,1.708233,26343.0,26338.0,0.1849]
[1693502291096,1.708233,26343.0,26342.0,0.003]
[1693502291299,2.04010173,26343.0,26342.0,0.003]
[1693502291503,2.37000685,26343.0,26342.0,0.003]
[1693502291712,2.28727451,26343.0,26337.0,0.07602]
[1693502291926,2.28727451,26343.0,26338.0,0.51475319]
[1693502291927,0.08866406,26342.0,26338.0,0.51475319]
[1693502292137,1.138916,26341.0,26338.0,0.64099319]
[1693502292339,1.138891,26342.0,26339.0,0.29208]
[1693502292546,0.569444,26342.0,26340.0,0.36768085]
[1693502292960,0.569444,26342.0,26341.0,0.13568]
[1693502293161,0.569444,26342.0,26341.0,0.50990085]
[1693502293363,0.569444,26342.0,26341.0,0.51104085]
[1693502293564,1.138889,26342.0,26341.0,0.51968085]
[1693502293772,1.138889,26342.0,26341.0,0.52022085]
[1693502293917,1.139889,26342.0,26341.0,0.50738085]
[1693502294124,1.139889,26342.0,26341.0,0.49628085]
[1693502294329,1.139889,26342.0,26341.0,0.49022085]
[1693502294586,1.139889,26342.0,26341.0,0.49634085]
[1693502294759,1.709334,26342.0,26341.0,0.11142]
[1693502294961,1.709334,26342.0,26341.0,0.0792]
[1693502295161,1.709334,26342.0,26341.0,0.028]
[1693502295162,1.97733953,26342.0,26341.0,0.028]
[1693502295363,2.19899968,26342.0,26341.0,0.028]
[1693502295591,2.19899968,26342.0,26341.0,0.059]
[1693502295592,2.11133562,26342.0,26341.0,0.059]
[1693502295762,2.62511376,26342.0,26341.0,0.028]
[1693502295968,2.68511376,26342.0,26335.0,0.0675]
[1693502296168,0.2309,26339.0,26333.0,0.09366]
[1693502296370,2.278144,26338.0,26334.0,0.36768085]
[1693502296774,2.278144,26338.0,26335.0,0.09924]
[1693502296973,2.278144,26338.0,26335.0,0.10596]
[1693502297269,2.278144,26338.0,26335.0,0.48528085]
[1693502297270,1.708608,26338.0,26335.0,0.48528085]
[1693502297446,1.708608,26338.0,26336.0,0.10458]
[1693502297646,1.708608,26338.0,26336.0,0.10524]
[1693502297855,1.708608,26338.0,26336.0,0.10806]
[1693502298271,1.139072,26338.0,26337.0,0.36768085]
[1693502298451,1.139072,26338.0,26337.0,0.46572085]
[1693502298663,1.708608,26338.0,26337.0,0.46764085]
[1693502298861,1.709608,26338.0,26335.0,0.014]
[1693502299060,1.708608,26338.0,26334.0,0.07128]
[1693502299288,1.709608,26338.0,26337.0,0.014]
[1693502300125,1.709608,26338.0,26337.0,0.07862]
[1693502300334,1.709608,26338.0,26337.0,0.0833]
[1693502300545,1.709608,26338.0,26337.0,0.08444]
[1693502300756,1.709608,26338.0,26337.0,0.014]
[1693502301807,1.709608,26338.0,26337.0,0.029]
[1693502303713,1.140072,26338.0,26337.0,0.47882085]
[1693502303922,1.140072,26338.0,26337.0,0.48050085]
[1693502304141,0.570536,26338.0,26337.0,0.48020085]
[1693502304348,0.570536,26338.0,26337.0,0.53740085]
[1693502304349,0.001,26338.0,26337.0,0.53740085]
[1693502304562,0.001,26338.0,26337.0,0.53254085]
[1693502304781,0.001,26338.0,26337.0,0.52264085]
[1693502304992,0.001,26338.0,26337.0,0.51880085]
[1693502305209,0.001,26338.0,26337.0,0.52138085]
[1693502305416,0.001,26338.0,26337.0,0.52762085]
[1693502305645,0.001,26338.0,26337.0,0.52690085]
[1693502305927,0.001,26338.0,26337.0,0.54964085]
[1693502306135,0.001,26338.0,26337.0,1.56425394]
[1693502306348,0.001,26338.0,26337.0,1.22962085]
[1693502306559,0.569456,26341.0,26337.0,1.36814085]
[1693502306751,0.569456,26341.0,26338.0,0.38768085]
[1693502306962,0.569456,26341.0,26338.0,0.65048085]
[1693502307227,0.569456,26341.0,26339.0,0.1146]
[1693502307436,0.569456,26341.0,26340.0,0.38768085]
[1693502307646,0.7346235,26341.0,26340.0,0.38768085]
[1693502307857,0.7346235,26341.0,26340.0,0.47240085]
[1693502308068,0.7346235,26341.0,26340.0,0.47990085]
[1693502308276,0.7346235,26341.0,26340.0,0.48266085]
[1693502308487,0.7346235,26341.0,26340.0,0.48896085]
[1693502308700,0.7346369,26341.0,26340.0,0.48992085]
[1693502308909,0.7346369,26341.0,26340.0,0.49244085]
[1693502309127,0.570456,26341.0,26340.0,0.48758085]
[1693502309330,0.570456,26341.0,26340.0,1.66385285]
[1693502309331,0.001,26341.0,26340.0,1.66385285]
[1693502309544,0.001,26341.0,26340.0,0.50480085]
[1693502309774,0.001,26341.0,26340.0,0.50336085]
[1693502309993,0.65804619,26344.0,26340.0,0.49658085]
[1693502310204,0.73447881,26343.0,26340.0,0.51026085]
[1693502310412,1.392555,26343.0,26341.0,0.08766]
[1693502310628,1.392555,26343.0,26342.0,0.38768085]
[1693502310629,1.22749919,26343.0,26342.0,0.38768085]
[1693502310837,0.82314501,26343.0,26342.0,0.38768085]
[1693502311063,0.82314501,26343.0,26342.0,0.47114085]
[1693502311271,0.82314501,26343.0,26342.0,0.47372085]
[1693502311480,0.82314501,26343.0,26342.0,0.47390085]
[1693502311690,0.82314501,26343.0,26342.0,0.47822085]
[1693502311891,0.82314501,26343.0,26342.0,0.48062085]
[1693502312099,0.82314501,26343.0,26342.0,0.49556085]
[1693502312312,1.15346359,26343.0,26342.0,0.49730085]
[1693502312517,1.15346359,26343.0,26342.0,0.50630085]
[1693502312724,1.15346359,26343.0,26342.0,0.51774085]
[1693502312899,1.15346359,26343.0,26342.0,0.53962085]
[1693502313117,1.15346359,26343.0,26342.0,0.53648085]
[1693502313256,0.74675711,26343.0,26342.0,0.50668085]
[1693502313463,0.74675711,26343.0,26342.0,0.50650085]
[1693502313729,0.74675711,26343.0,26342.0,0.50572085]
[1693502313927,0.74675711,26343.0,26342.0,0.47820085]
[1693502314132,0.74675711,26343.0,26342.0,0.51616085]
[1693502314330,1.03307924,26343.0,26342.0,0.52258085]
[1693502314530,1.03307924,26343.0,26342.0,0.55946085]
[1693502314783,1.03307924,26343.0,26342.0,0.56060085]
[1693502314951,1.03307924,26343.0,26342.0,0.56138085]
[1693502315173,1.03307924,26343.0,26342.0,0.56708085]
[1693502315379,0.31106768,26343.0,26342.0,0.66068294]
[1693502315580,0.31106768,26343.0,26342.0,0.59126085]
[1693502315788,0.1333175,26343.0,26342.0,0.58520085]
[1693502315992,0.31106768,26343.0,26342.0,0.57326085]
[1693502316200,0.31106768,26343.0,26342.0,0.53798085]
[1693502316201,1.88598318,26343.0,26342.0,0.53798085]
[1693502316411,2.17175408,26343.0,26342.0,0.44148085]
[1693502317583,2.17175408,26343.0,26342.0,0.40448085]
[1693502318187,2.11495513,26343.0,26342.0,0.074]
[1693502318535,2.38130823,26343.0,26342.0,0.037]
[1693502318737,2.38130823,26343.0,26342.0,0.074]
[1693502319141,2.38130823,26343.0,26342.0,0.46168085]
[1693502319142,0.62915366,26343.0,26342.0,0.46168085]
[1693502319351,0.4646285,26343.0,26342.0,0.46168085]
[1693502319554,0.4646285,26343.0,26342.0,0.57010085]
[1693502319757,0.4646285,26343.0,26342.0,0.58018085]
[1693502319961,0.42014153,26343.0,26342.0,2.07842485]
[1693502320172,0.42014153,26343.0,26342.0,2.08898485]
[1693502320173,0.1334616,26343.0,26342.0,2.08898485]
[1693502320377,0.1334616,26343.0,26342.0,2.09114485]
[1693502320581,0.1334616,26343.0,26342.0,3.07685685]
[1693502320582,0.22244598,26343.0,26342.0,3.07685685]
[1693502322047,0.1334616,26347.0,26346.0,2.62359885]
[1693502322249,0.22248113,26347.0,26346.0,2.62023885]
[1693502322454,0.22248113,26347.0,26346.0,2.97358773]
[1693502322626,0.08901953,26347.0,26346.0,2.96638773]
[1693502322835,0.1334616,26347.0,26346.0,2.94682773]
[1693502323041,0.31140554,26347.0,26346.0,2.92930773]